Cogmind - Beta 16 @@@ ROGUE MODE // 2025.11.10 @ 13:22:18 Player: ClassActJerk Result: Destroyed by S-10 Pest with Light Assault Rifle Performance ------------- Evolutions (0) 0 Regions Visited (3) 600 Robots Destroyed (8) 40 Value Destroyed (233) 233 Prototype IDs (12) 240 Alien Tech Used (0) 0 Bonus (0) 0 TOTAL SCORE: 1113 Bonus ------- None Cogmind --------- Core Integrity 0/250 Matter 198/300 Energy 199/200 System Corruption 12% Temperature Cool (0) Movement Rolling (110) Location -10/Subcaves Parts ------- > --- POWER (1) -------- Subdweller Power Source > --- PROPULSION (2) --- Subdweller Monowheel > --- UTILITY (2) ------ Small Storage Unit Subdweller Optics > --- WEAPON (2) ------- Subdweller Beam Cannon > --- INVENTORY (8) ---- Ion Engine Arachnoskeleton Peak State ------------ > --- POWER ------------ Subdweller Power Source > --- PROPULSION ------- Subdweller Monowheel > --- UTILITY ---------- Small Storage Unit Subdweller Optics > --- WEAPON ----------- Subdweller Beam Cannon > --- INVENTORY -------- Ion Engine Arachnoskeleton [Rating: 11] Favorites ----------- Power Ion Engine Engine Ion Engine Propulsion Aluminum Leg Leg Aluminum Leg Wheel Subdweller Monowheel Utility Small Storage Unit Device Subdweller Optics Storage Small Storage Unit Protection Power Shielding Weapon EM Pulse Gun Energy Gun EM Pulse Gun Energy Cannon Subdweller Beam Cannon Launcher Grenade Launcher Build | -11 -10 -10 -10 ------- Run | Yrd Mat Min Sub Slots Evolved . | . . . . Power . | . . . . Propulsion . | . . . . Utility . | . . . . Weapon . | . . . . Parts Attached 17 | 6 . 3 8 Power 3 | 1 . 1 1 Engine 3 | 1 . 1 1 Core . | . . . . Reactor . | . . . . Propulsion 4 | 2 . . 2 Treads . | . . . . Leg 3 | 2 . . 1 Wheel 1 | . . . 1 Hover . | . . . . Flight . | . . . . Utility 3 | 1 . 1 1 Device 1 | . . . 1 Storage 1 | 1 . . . Processor . | . . . . Hackware . | . . . . Protection 1 | . . 1 . Artifact . | . . . . Weapon 7 | 2 . 1 4 Energy Gun 3 | 2 . 1 . Energy Cannon 1 | . . . 1 Ballistic Gun . | . . . . Ballistic Cannon . | . . . . Launcher 3 | . . . 3 Special Weapon . | . . . . Impact Weapon . | . . . . Slashing Weapon . | . . . . Piercing Weapon . | . . . . Special Melee Weapon . | . . . . Unidentified Prototypes . | . . . . Parts Lost 7 | . . . 7 Power . | . . . . Propulsion 2 | . . . 2 Utility 1 | . . . 1 Weapon 4 | . . . 4 Highest Loss Streak 7 | . . . 7 To Critical Strikes . | . . . . Average Backups 3 | 2 3 4 3 Power 1 | . 1 1 1 Propulsion . | . . 1 1 Utility . | . . . . Weapon 1 | . 1 1 1 Tool/Special . | . . . . Unused Backups 2 | . . . 2 Power 1 | . . . 1 Propulsion 1 | . . . 1 Utility . | . . . . Weapon . | . . . . Tool/Special . | . . . . Average Slot Usage (%) 88 | . 85 93 87 Engine 13 | . 14 14 13 Leg 23 | . 28 28 18 Wheel 1 | . . . 3 Device 1 | . . . 3 Storage 14 | . 14 14 14 Protection 7 | . . 8 9 Energy Gun 19 | . 28 27 13 Energy Cannon 2 | . . . 4 Launcher 3 | . . . 6 Peak Build Rating 11 | 6 6 7 11 Average Rating 7 | 3 6 6 8 On Entrance 4 | . 6 6 7 Avg Prop Armor Cover (%) . | . . . . Naked Turns . | . . . . Heaviest Build 20 | 12 12 15 20 Greatest Support 20 | 20 20 20 20 Greatest Overweight (x) 4 | 1 . . 4 Average Overweight (x) . | . . . . Largest Inventory Capacity 8 | 8 8 8 8 Average Capacity 7 | 6 8 8 8 Most Carried 8 | 5 5 6 8 Average Carried 4 | 2 3 4 5 Final Capacity 8 | 8 8 8 8 Final Carried 5 | 2 5 4 4 Class Distribution -------------------- 87% | Mutant 12% | Scavenger-Mutant Dominant Class ---------------- Mutant | -10/Materials Mutant | -10/Mines Mutant | -10/Subcaves Resources | -11 -10 -10 -10 ----------- Run | Yrd Mat Min Sub Matter Collected 405 | 235 25 20 125 Remotely . | . . . . Salvage Created 216 | . 90 50 76 Parts 13 | . 4 4 5 Haulers Intercepted . | . . . . Recyclers Shooed . | . . . . Parts Field Recycled . | . . . . Retrieved Matter . | . . . . Parts Self-Destructed 10 | . . . 10 Prevented . | . . . . Parts Restored . | . . . . Kills | -11 -10 -10 -10 ------- Run | Yrd Mat Min Sub Combat Hostiles Destroyed 8 | . 2 3 3 Guns 3 | . 1 2 . Cannons 1 | . . . 1 AOE 4 | . 1 1 2 Classes Destroyed 4 | . 1 1 2 Swarmer 3 | . . 3 . Grunt 2 | . 2 . . Sentry 1 | . . . 1 Subdweller 2 | . . . 2 Best Kill Streak 3 | . 1 3 2 Combat Bots Only 3 | . 1 3 2 Max Kills in Single Turn 1 | . 1 1 1 Gunslinging . | . . . . Exploded 1 | . 1 1 1 Melee . | . . . . Uniques/NPCs Destroyed . | . . . . Combat | -11 -10 -10 -10 -------- Run | Yrd Mat Min Sub Hostile Shots Fired 55 | . 10 13 32 Missed 23 | . 5 7 11 Hits 32 | . 5 6 21 Projectile 32 | . 5 6 21 Damage Taken 1042 | . 57 46 939 Core 250 | . 10 8 232 Absorbed by Shields . | . . . . Redirected to Shielding 2 | . . . 2 Core Remaining (%) 100 | 100 . . . Volleys Fired 24 | . 2 4 18 Largest 2 | . 2 2 2 Hottest 120 | . 80 80 120 Shots Fired 39 | . 4 8 27 Gun 21 | . 4 8 9 Cannon 6 | . . . 6 Launcher 12 | . . . 12 Special . | . . . . Kinetic 3 | . . . 3 Thermal 15 | . . . 15 Explosive 9 | . . . 9 Electromagnetic 12 | . 4 8 . Robot Hit Streak 11 | . 2 2 11 Robot Miss Streak 1 | . 1 1 1 Penetration Max . | . . . . Secondary Targets 2 | . . 2 . Max Gunslinging Chain 1 | . . 1 . Shots Hit Robots 29 | . 2 4 23 Core Hits 13 | . 3 3 7 Critical Kills . | . . . . Critical Parts Destroyed . | . . . . Critical Strikes 1 | . . . 1 Burn 1 | . . . 1 Melee Attacks . | . . . . Impact . | . . . . Slashing . | . . . . Piercing . | . . . . Sneak Attacks . | . . . . Combat Hostiles . | . . . . Follow-up Attacks . | . . . . Damage Inflicted 935 | . 63 81 791 Guns 155 | . 25 43 87 Cannons 139 | . . . 139 Explosions 641 | . 38 38 565 Melee . | . . . . Ramming . | . . . . Kinetic 236 | . . . 236 Thermal 302 | . 38 38 226 Explosive 329 | . . . 329 Electromagnetic 68 | . 25 43 . Impact . | . . . . Slashing . | . . . . Piercing . | . . . . Highest Corruption 12 | . . . 12 Average Corruption 12 | . . . 12 Corruption Purged . | . . . . Corruption Blocked . | . . . . Effects 7 | . . . 7 Message Errors 3 | . . . 3 Matter Fused 2 | . . . 2 Parts Rejected 1 | . . . 1 Data Loss (minor) 1 | . . . 1 Overload Shots . | . . . . Overflow Damage 36 | . . . 36 Projectiles . | . . . . Explosions 36 | . . . 36 Melee . | . . . . Knockbacks . | . . . . Impact . | . . . . Kinetic . | . . . . Secondary . | . . . . Self-Inflicted Damage 189 | . . . 189 Shots 7 | . . . 7 Rammed . | . . . . Targets Rammed . | . . . . Kicked . | . . . . Crushed . | . . . . Highest Temperature 72 | . 18 72 8 Average Temperature 23 | . 12 38 3 Received Heat Transfer 132 | . 33 . 99 Siege Activations . | . . . . Martial Activations . | . . . . Shielding Activations . | . . . . Robots Disrupted . | . . . . Combat Hostiles . | . . . . Robots Corrupted . | . . . . Combat Hostiles . | . . . . Parts Fried . | . . . . Impact Corruptions . | . . . . Robots Melted . | . . . . Combat Hostiles . | . . . . Parts Melted . | . . . . Heat Transferred 618 | . 100 . 518 Parts Sabotaged . | . . . . Parts Stolen . | . . . . Parts Stripped . | . . . . Power Chain Reactions 2 | . 1 1 . Alert | -11 -10 -10 -10 ------- Run | Yrd Mat Min Sub Maximum Alert Level . | . . . . Low Security (%) 100 | 100 100 100 . Level 1 . | . . . . Level 2 . | . . . . Level 3 . | . . . . Level 4 . | . . . . Level 5 . | . . . . High Security . | . . . . Max Security . | . . . . Peak Influence 88 | . 52 88 . Initial . | . . . . Average 20 | . 13 34 . Influence Increases 195 | . 72 88 35 Destroy 0b10 Robot/C 120 | . 40 60 20 Destroy Leader 20 | . 10 10 . Disable Machine 15 | . . 15 . Destroy Structure 10 | . 7 3 . Lose Combat Pursuer 30 | . 15 . 15 Influence Decreases 180 | . 72 88 20 Time Decay 180 | . 72 88 20 Squads Dispatched 1 | . 1 . . Investigation . | . . . . Extermination . | . . . . Reinforcement 1 | . 1 . . Assault . | . . . . Garrison . | . . . . Intercept . | . . . . Searches Triggered . | . . . . Construction Impeded . | . . . . Haulers Reinforced . | . . . . Active Scanning Responses . | . . . . Cargo Convoy Interrupts . | . . . . Stealth | -11 -10 -10 -10 --------- Run | Yrd Mat Min Sub Distress Signals . | . . . . Communications Jammed . | . . . . Distress Signals . | . . . . Times Spotted 14 | . 5 3 6 Peak Tracking Total 3 | . 2 3 3 Tactical Retreats 2 | . 1 . 1 Traps | -11 -10 -10 -10 ------- Run | Yrd Mat Min Sub Traps Triggered 1 | . . . 1 Indirectly . | . . . . Trap Hack Attempts . | . . . . Triggered . | . . . . Disarmed . | . . . . Reprogrammed . | . . . . Reused . | . . . . Traps Extracted . | . . . . Installed . | . . . . Triggered . | . . . . Machines | -11 -10 -10 -10 ---------- Run | Yrd Mat Min Sub Machines Disabled 3 | . . 1 2 Max in Single Turn 2 | . . 1 2 Machines Repaired . | . . . . Machines Dismantled . | . . . . Machines Sabotaged . | . . . . Overloaded Fab Kills . | . . . . Hacking | -11 -10 -10 -10 --------- Run | Yrd Mat Min Sub Machines Accessed 1 | . . . 1 Terminals . | . . . . Fabricators . | . . . . Repair Stations . | . . . . Recycling Units . | . . . . Scanalyzers . | . . . . Garrison Access . | . . . . Total Hacks 9 | . . . 9 Successful 9 | . . . 9 Failed . | . . . . Catastrophic . | . . . . Database Lockouts . | . . . . Manual . | . . . . Terminals . | . . . . Fabricators . | . . . . Repair Stations . | . . . . Recycling Units . | . . . . Scanalyzers . | . . . . Garrison Access . | . . . . Terminal Hacks 9 | . . . 9 Record 8 | . . . 8 Proto ID Catalog 1 | . . . 1 Fabricator Hacks . | . . . . Repair Station Hacks . | . . . . Recycling Unit Hacks . | . . . . Scanalyzer . | . . . . Garrison Access Hacks . | . . . . Unauthorized Hacks . | . . . . Terminals . | . . . . Fabricators . | . . . . Repair Stations . | . . . . Recycling Units . | . . . . Scanalyzers . | . . . . Garrison Access . | . . . . Data Cores Recovered . | . . . . Used . | . . . . Hacking Detections . | . . . . Full Trace Events . | . . . . Feedback Events . | . . . . Feedback Blocked . | . . . . Robot Schematics Acquired . | . . . . Robots Built . | . . . . Authchips . | . . . . Time . | . . . . Total Robot Build Rating . | . . . . Part Schematics Acquired . | . . . . Parts Built . | . . . . Authchips . | . . . . Time . | . . . . Total Part Build Rating . | . . . . Part Studies Acquired . | . . . . Parts Repaired . | . . . . Time . | . . . . Parts Recycled . | . . . . Recycled Matter . | . . . . Retrieved Matter . | . . . . Retrieved Components . | . . . . Parts Scanalyzed . | . . . . Part Schematics Acquired . | . . . . Parts Damaged . | . . . . Bothacking | -11 -10 -10 -10 ------------ Run | Yrd Mat Min Sub Used RIF Installer . | . . . . Robots Hacked . | . . . . Non-combat . | . . . . Combat . | . . . . Robot Hacks Applied . | . . . . Relay Couplers Released . | . . . . Fabnet Peak Effective % . | . . . . Robots Rewired . | . . . . Allies Hacked . | . . . . Hacks Repelled . | . . . . Allies | -11 -10 -10 -10 -------- Run | Yrd Mat Min Sub Total Allies . | . . . . Largest Group . | . . . . Highest-Rated Group . | . . . . Highest-Rated Ally . | . . . . Total Orders . | . . . . Ally Attacks . | . . . . Total Damage . | . . . . Kills . | . . . . Allies Corrupted . | . . . . Allies Melted . | . . . . Intel | -11 -10 -10 -10 ------- Run | Yrd Mat Min Sub Active Infowar (turns) 136 | . . . 136 Optics 136 | . . . 136 Robot Analysis Total . | . . . . Derelict Logs Recovered 1 | . . . 1 Drone Launches . | . . . . Drone Recoveries . | . . . . Exploration | -11 -10 -10 -10 ------------- Run | Yrd Mat Min Sub Turns Passed 1122 | 55 271 231 565 Spaces Moved 601 | 48 73 123 357 Core 29 | 23 . . 6 Treads . | . . . . Legs 491 | 25 73 123 270 Wheels 81 | . . . 81 Hover . | . . . . Flight . | . . . . Fastest Speed 50 | 50 120 120 110 Average Speed 118 | 90 120 120 120 Slowest Speed 250 | 120 120 120 250 Overloaded Moves . | . . . . Propulsion Burnouts . | . . . . Robots Hopped . | . . . . Potential Cave-ins . | . . . . Cave-ins Triggered 1 | . . . 1 Exploration Rate (%) 18 | 4 17 28 24 Regions Visited 3 Branch Regions 2 Pre-discovered Areas 1 | . . 1 . Known Exits Taken . | . . . . Unknown Exits Taken 3 | 1 1 1 . Scrap Searched 4 | . . 1 3 Spaces Dug . | . . . . Terrain Destroyed 79 | . 6 3 70 Melee . | . . . . Projectile . | . . . . AOE 79 | . 6 3 70 Terrain Rammed . | . . . . Walls Destroyed . | . . . . Machines Disabled . | . . . . Actions | -11 -10 -10 -10 --------- Run | Yrd Mat Min Sub Total 973 | 58 252 199 464 Wait 309 | . 175 66 68 Move 598 | 47 72 122 357 Hop . | . . . . Pick Up 18 | 5 3 2 8 Fast Attach 3 | 3 . . . Attach 14 | 3 . 3 8 Detach . | . . . . Swap 1 | . . . 1 Drop 6 | . . 2 4 Fire 24 | . 2 4 18 Melee . | . . . . Ram . | . . . . Kick . | . . . . Crush . | . . . . Escape Stasis . | . . . . Rewire . | . . . . Trap . | . . . . Miscellaneous . | . . . . Route ------- -11/Scrapyard -10/Materials -10/Mines (discovered 2 exits: [*Mat] / *Sub) -10/Subcaves History --------- Turn | Location | Event 5 | -11/Scrapyard | Discovered new exit (range 16) 56 | -11/Scrapyard | Entered Materials 304 | -10/Materials | Build established: Mutant 310 | -10/Materials | Discovered new exit (range 14) 327 | -10/Materials | Entered Mines 361 | -10/Mines | YI-UF0 nonchalantly dropped a Grenade Launcher on the ground 426 | -10/Mines | Discovered new exit (range 15) 477 | -10/Mines | Learned location of Storage (-9) 551 | -10/Mines | Discovered new exit (range 5) 558 | -10/Mines | Entered Subcaves 562 | -10/Subcaves | Learned Materials security intel 655 | -10/Subcaves | Visited 4L-MR0's lab 697 | -10/Subcaves | Found Arachnoskeleton 949 | -10/Subcaves | Crushed by falling debris 949 | -10/Subcaves | Core integrity fell below 50% 949 | -10/Subcaves | System corruption reached 10% 960 | -10/Subcaves | Ambushed by Subdweller buried in earth 962 | -10/Subcaves | Core integrity fell below 20% 994 | -10/Subcaves | Lost 7 parts (2n1u4w) 1107 | -10/Subcaves | Shifting Twisted Machinery released Mak. Hacking Suite 1123 | -10/Subcaves | Destroyed by S-10 Pest with Light Assault Rifle Last Messages --------------- to Scrap Shield. 00991_ UZT3UM2QG|6AKH0ZQUJ,DJM2U1>L<3DP1C4B 00998_ The unstable cave ceiling collapses. 01010_ JVVZNO LMIL& YAM6Y2S0D8M=SLDZ/KNKF|PWIY1 01054_ Subatomizers dissect the Sub. Optics. 01067_ System corrupted: Matter fused (-7). 01079_ Subatomizers dissect the Sub. Optics. 01089_ System corrupted: Matter fused (-5). 01100_ Subatomizers dissect the Sub. Power Source. Mak. Hacking Suite falls loose from the Twisted Machinery. 01111_ Subatomizers dissect the Sub. Power Source. 01118_ S-10 Pest springs to life. 01122_ Subatomizers dissect the Sub. Power Source. Map ----- +----------------------------------------------------+ | ?????????????????????????????????????????????????? | | ?????????????????????????????????????????????????? | | ?????????????????????????????????????????????????? | | ?????????????????????????????????????????????????? | | ?####??####??????????????????????????????????????? | | ## ### #??????????????????????????????????????? | | ###????????????????????????????????????? | | " " #?????????????#####??????????????????? | | & ##########???? ####???????????????? | | ! ""#""" ## ##??? ##??????????????? | | && """" ##??? ##?????????????? | | # "" #??? = ##????????????? | | ### #" # ## ##???# % ##???????????? | | ###### ## ##???# #???????????? | | ## #??## #???????????? | | ### " ## #??# ##??????????? | | # " ### ##?# #??????????? | | # " ## #?# #??????????? | | ### "## #?# #??????????? | | ###?## #### ### &%= ##?????????? | | #????## ##??## ## * ###### | | #????# ????# s | | #?# #???## s ## | | ##?## ??## #### ##??????????? | | ###???# #?## ##???# #???????????? | | ##????? ?#" @ ##????? "?????????? | | #?????? #?## ###??????? #????????? | | ##????? #??#### #####?????????? #????????? | | ??????? # ##?????# #??????????????? "#????????? | | ?????? ###???????# ##???????????????? "#????????? | | ??????"??????????# #??????????????????"#????????? | | ?????? ?????????? ##??????????????????##????????? | | ????? ??????????" #?????????????????????????????? | | ?????#????????? #?????????????????????????????? | | ??????????????## #?????????????????????????????? | | ???????????????## ?????????????????????????????? | | ????????????????## ?????????????????????????????? | | ?????????????????# ?????????????????????????????? | | ?????????????????# ?????????????????????????????? | | ????????????????? ?????????????????????????????? | | ????????????????? ?????????????????????????????? | | ?????????????????###?????????????????????????????? | | ?????????????????????????????????????????????????? | | ?????????????????????????????????????????????????? | | ?????????????????????????????????????????????????? | | ?????????????????????????????????????????????????? | | ?????????????????????????????????????????????????? | | ?????????????????????????????????????????????????? | | ?????????????????????????????????????????????????? | | ?????????????????????????????????????????????????? | +----------------------------------------------------+ Best States ------------- Heat Dissipation 25 Energy Generation 15 Energy Capacity 250 Matter Stores 300 Matter Capacity 300 Sight Range 21 Terrain Scan Density 10 Power Shielding 33 Evasion (%) 55 Item Schematics ----------------- None Robot Schematics ------------------ None Fabricated ------------ Nothing Repaired ---------- Nothing Studied --------- None Alien Tech Used ----------------- None Achievements -------------- Do Not Disturb Mistaken Identity Overwhelming Resistances Are Futile Challenges ------------ None Game ------ Seed DecoyArcsightClaws Manual? 0 Play Time 00:12:11 Cumulative 16.1 hours Start 2025.11.10 @ 13:12:32 End 2025.11.10 @ 13:22:18 Sessions 1 Manual Loads 0 Difficulty Rogue Special Mode None Game No. 46 Rogue 46 Adventurer 0 Explorer 0 Win Type - Total 0 Types 0/0/0/0/0/0/0/0/0/0 Lore% 5 Gallery% 17 Achievement% 12 Wizard Run 0 Options --------- Layout 1 ASCII 0 Keyboard 0 Movement Mouse Keybinds 0 Fullscreen 1 Font 24/Terminus Map View 50x35 Zoom Use 0% Tactical HUD 1 Map Filters NONE Filters NONE Steam 1 RUN: 899eb1f3-5dd8-44ad-9d3c-978a357bd6a5